fUSD/lending_fUSD_20240907
["ID","MTS","AMOUNT","RATE_DAILY","PERIOD"]
[337449258,1725673838834,-503.73447253,0.00014794,2]
[337449259,1725673838843,-500.0,0.00014794,2]
[337449260,1725673838852,-500.0,0.00014794,2]
[337449261,1725673838861,-340.80644069,0.00014794,2]
[337449262,1725673838873,-479.88649584,0.00014794,2]
[337449263,1725673838904,-1094.62350416,0.00014794,2]
[337449264,1725673838913,-1574.51,0.00014794,2]
[337449265,1725673838922,-500.0,0.00014794,2]
[337449266,1725673838931,-1574.51,0.00014794,2]
[337449267,1725673838940,-500.0,0.00014794,2]
[337449268,1725673838949,-1574.51,0.00014794,2]
[337449269,1725673838958,-500.0,0.00014794,2]
[337449270,1725673838967,-1574.51,0.00014794,2]
[337449271,1725673838976,-500.0,0.00014794,2]
[337449272,1725673838986,-1574.51,0.00014794,2]
[337449273,1725673838996,-500.0,0.00014794,2]
[337449274,1725673839005,-1574.51,0.00014794,2]
[337449275,1725673839014,-153.94211204,0.00014794,2]
[337449276,1725673839023,-502.75974771,0.00014794,2]
[337449277,1725673839038,-684.71908266,0.00014794,2]
[337449278,1725673839049,-387.02289021,0.00014794,2]
[337449279,1725673839059,-0.00827942,0.00014794,2]
[337449280,1725673839069,-251.03086369,0.00014794,2]
[337449281,1725673839512,-500.0,0.00013347,2]
[337449282,1725673839522,-365.31617129,0.00014684,2]
[337449283,1725673839536,-270.26587227,0.00014684,2]
[337449284,1725673839548,-297.87231539,0.00014684,2]
[337449285,1725673839560,-66.54564105,0.00014684,2]
[337449286,1725673839570,-469.30586975,0.00014794,2]
[337449287,1725673839582,-854.17326656,0.00014794,2]
[337449288,1725673839591,-1082.69801535,0.00014794,2]
[337449289,1725673839602,-491.81198465,0.00014794,2]
[337449290,1725673839612,-1574.51,0.00014794,2]
[337449291,1725673839622,-1574.51,0.00014794,2]
[337449292,1725673839631,-1574.51,0.00014794,2]
[337449293,1725673839641,-1574.51,0.00014794,2]
[337449294,1725673839651,-1574.51,0.00014794,2]
[337449295,1725673839662,-1574.51,0.00014794,2]
[337449296,1725673839673,-1574.51,0.00014794,2]
[337449297,1725673839684,-1574.51,0.00014794,2]
[337449298,1725673839694,-702.70282714,0.00014794,2]
[337449299,1725673839709,-871.80717286,0.00014794,2]
[337449300,1725673839720,-1574.51,0.00014794,2]
[337449301,1725673839730,-1240.67680617,0.00014794,2]
[337449302,1725673839743,-333.83319383,0.00014794,2]
[337449303,1725673839754,-1574.51,0.00014794,2]
[337449304,1725673839765,-1574.51,0.00014794,2]
[337449305,1725673839775,-500.0,0.00014794,2]
[337449306,1725673839791,-1574.5846593,0.00014794,2]
[337449307,1725673839801,-536.85134707,0.00014794,2]
[337449308,1725673839811,-500.0,0.00014794,2]
[337449309,1725673839821,-500.0,0.00014794,2]
[337449310,1725673839831,-473.71085986,0.00014794,2]
[337449311,1725673839841,-500.0,0.00014794,2]
[337449312,1725673839851,-500.0,0.00014794,2]
[337449313,1725673839861,-500.0,0.00014794,2]
[337449314,1725673839872,-500.0,0.00014794,2]
[337449316,1725673839882,-500.0,0.00014794,2]
[337449317,1725673839892,-606.24739102,0.00014794,2]
[337449318,1725673839907,-267.46177817,0.00014794,2]
[337449319,1725673839917,-500.0,0.00014794,2]
[337449320,1725673839928,-500.0,0.00014794,2]
[337449321,1725673839938,-500.0,0.00014794,2]
[337449322,1725673839949,-500.0,0.00014794,2]
[337449323,1725673839958,-500.0,0.00014794,2]
[337449324,1725673839969,-500.0,0.00014794,2]
[337449325,1725673839979,-500.0,0.00014794,2]
[337449326,1725673839989,-500.0,0.00014794,2]
[337449327,1725673840001,-153.771424,0.00014794,2]
[337449328,1725673840011,-500.0,0.00014794,2]
[337449329,1725673840021,-284.2594115,0.00014794,2]
[337449330,1725673840031,-504.09544389,0.00014794,2]
[337449331,1725673840041,-500.0,0.00014794,2]
[337449332,1725673840051,-500.0,0.00014794,2]
[337449333,1725673840061,-500.0,0.00014794,2]
[337449334,1725673840071,-500.0,0.00014794,2]
[337449335,1725673840083,-500.0,0.00014794,2]
[337449336,1725673840092,-500.0,0.00014794,2]
[337449337,1725673840102,-500.0,0.00014794,2]
[337449338,1725673840112,-579.85,0.00014794,2]
[337449339,1725673840122,-500.0,0.00014794,2]
[337449340,1725673840132,-209.16744441,0.00014794,2]
[337449341,1725673840141,-500.0,0.00014794,2]
[337449342,1725673840153,-500.0,0.00014794,2]
[337449343,1725673840163,-500.0,0.00014794,2]
[337449344,1725673840175,-500.0,0.00014794,2]
[337449345,1725673840185,-285.42817495,0.00014794,2]
[337449346,1725673840195,-500.0,0.00014794,2]
[337449347,1725673840205,-507.93208572,0.00014794,2]
[337449348,1725673840215,-509.32273412,0.00014794,2]
[337449349,1725673840225,-500.0,0.00014794,2]
[337449350,1725673840235,-500.0,0.00014794,2]
[337449351,1725673840246,-500.0,0.00014794,2]
[337449352,1725673840256,-535.64670756,0.00014794,2]
[337449353,1725673840265,-500.0,0.00014794,2]
[337449354,1725673840276,-509.19722111,0.00014794,2]
[337449355,1725673840286,-500.0,0.00014794,2]
[337449356,1725673840295,-500.0,0.00014794,2]
[337449357,1725673840305,-500.0,0.00014794,2]
[337449358,1725673840317,-500.0,0.00014794,2]
[337449359,1725673840329,-500.0,0.00014794,2]
[337449360,1725673840339,-500.0,0.00014794,2]
[337449361,1725673840350,-500.0,0.00014794,2]
[337449362,1725673840360,-500.0,0.00014794,2]
[337449363,1725673840371,-500.0,0.00014794,2]
[337449364,1725673840380,-500.0,0.00014794,2]
[337449365,1725673840392,-500.0,0.00014794,2]
[337449366,1725673840403,-257.58792854,0.00014794,2]
[337449367,1725673840413,-500.0,0.00014794,2]
[337449368,1725673840424,-500.0,0.00014794,2]
[337449369,1725673840433,-500.0,0.00014794,2]
[337449370,1725673840443,-500.0,0.00014794,2]
[337449371,1725673840453,-168.46637349,0.00014794,2]
[337449372,1725673840464,-500.0,0.00014794,2]
[337449373,1725673840475,-500.0,0.00014794,2]
[337449374,1725673840486,-500.0,0.00014794,2]
[337449375,1725673840496,-500.0,0.00014794,2]
[337449376,1725673840506,-500.0,0.00014794,2]
[337449377,1725673840516,-500.0,0.00014794,2]
[337449378,1725673840527,-500.0,0.00014794,2]
[337449379,1725673840536,-500.0,0.00014794,2]
[337449380,1725673840546,-500.0,0.00014794,2]
[337449381,1725673840556,-500.0,0.00014794,2]
[337449382,1725673840566,-500.0,0.00014794,2]
[337449383,1725673840575,-423.79953521,0.00014794,2]
[337449384,1725673840587,-500.0,0.00014794,2]
[337449385,1725673840598,-500.0,0.00014794,2]
[337449386,1725673840608,-500.0,0.00014794,2]
[337449387,1725673840617,-500.0,0.00014794,2]
[337449388,1725673840627,-500.0,0.00014794,2]
[337449389,1725673840636,-500.0,0.00014794,2]
[337449390,1725673840646,-500.0,0.00014794,2]
[337449391,1725673840655,-273.55136702,0.00014794,2]
[337449392,1725673840664,-511.55883766,0.00014794,2]
[337449393,1725673840674,-151.0,0.00014794,2]
[337449394,1725673840683,-151.0,0.00014794,2]
[337449395,1725673840693,-500.0,0.00014794,2]
[337449396,1725673840702,-500.0,0.00014794,2]
[337449397,1725673840712,-500.0,0.00014794,2]
[337449398,1725673840721,-500.0,0.00014794,2]
[337449399,1725673840731,-441.30483962,0.00014794,2]
[337449400,1725673840742,-151.0,0.00014794,2]
[337449401,1725673840751,-500.0,0.00014794,2]
[337449402,1725673840761,-151.0,0.00014794,2]
[337449403,1725673840771,-500.0,0.00014794,2]
[337449404,1725673840782,-500.0,0.00014794,2]
[337449405,1725673840792,-506.38909272,0.00014794,2]
[337449406,1725673840803,-500.0,0.00014794,2]
[337449407,1725673840813,-500.0,0.00014794,2]
[337449408,1725673840822,-500.0,0.00014794,2]
[337449409,1725673840832,-500.0,0.00014794,2]
[337449410,1725673840842,-500.0,0.00014794,2]
[337449411,1725673840851,-500.0,0.00014794,2]
[337449412,1725673840861,-500.0,0.00014794,2]
[337449413,1725673840871,-500.0,0.00014794,2]
[337449414,1725673840880,-500.0,0.00014794,2]
[337449415,1725673840890,-500.0,0.00014794,2]
[337449416,1725673840899,-500.0,0.00014794,2]
[337449417,1725673840909,-500.0,0.00014794,2]
[337449418,1725673840919,-500.0,0.00014794,2]
[337449419,1725673840928,-503.97666686,0.00014794,2]
[337449420,1725673840938,-428.88,0.00014794,2]
[337449421,1725673840947,-500.0,0.00014794,2]
[337449422,1725673840957,-500.0,0.00014794,2]
[337449423,1725673840966,-500.0,0.00014794,2]
[337449424,1725673840976,-500.0,0.00014794,2]
[337449425,1725673840986,-500.0,0.00014794,2]
[337449426,1725673840996,-500.0,0.00014794,2]
[337449427,1725673841006,-500.0,0.00014794,2]
[337449428,1725673841017,-500.0,0.00014794,2]
[337449429,1725673841027,-500.0,0.00014794,2]
[337449430,1725673841037,-245.52783236,0.00014794,2]
[337449431,1725673841047,-500.0,0.00014794,2]
[337449432,1725673841056,-500.0,0.00014794,2]
[337449433,1725673841066,-500.0,0.00014794,2]
[337449434,1725673841076,-500.0,0.00014794,2]
[337449435,1725673841085,-500.0,0.00014794,2]
[337449436,1725673841095,-319.58138976,0.00014794,2]
[337449437,1725673841104,-500.0,0.00014794,2]
[337449438,1725673841113,-500.0,0.00014794,2]
[337449439,1725673841123,-500.0,0.00014794,2]
[337449440,1725673841132,-500.0,0.00014794,2]
[337449441,1725673841142,-500.0,0.00014794,2]
[337449442,1725673841151,-500.0,0.00014794,2]
[337449443,1725673841160,-500.0,0.00014794,2]
[337449444,1725673841169,-500.0,0.00014794,2]
[337449445,1725673841179,-500.0,0.00014794,2]
[337449446,1725673841189,-500.0,0.00014794,2]
[337449447,1725673841198,-500.0,0.00014794,2]
[337449448,1725673841207,-500.0,0.00014794,2]
[337449449,1725673841216,-500.0,0.00014794,2]
[337449450,1725673841226,-500.0,0.00014794,2]
[337449451,1725673841236,-507.20271034,0.00014794,2]
[337449452,1725673841245,-500.0,0.00014794,2]
[337449453,1725673841255,-151.0,0.00014794,2]
[337449454,1725673841265,-393.07676467,0.00014794,2]
[337449455,1725673841274,-151.0,0.00014794,2]
[337449456,1725673841285,-697.02,0.00014794,2]
[337449457,1725673841294,-697.02,0.00014794,2]
[337449458,1725673841304,-697.02,0.00014794,2]
[337449459,1725673841313,-697.02,0.00014794,2]
[337449460,1725673841326,-697.02,0.00014794,2]
[337449461,1725673841335,-697.02,0.00014794,2]
[337449462,1725673841344,-697.02,0.00014794,2]
[337449463,1725673841354,-697.02,0.00014794,2]
[337449464,1725673841364,-697.02,0.00014794,2]
[337449465,1725673841374,-697.02,0.00014794,2]
[337449466,1725673841383,-697.02,0.00014794,2]
[337449467,1725673841394,-697.02,0.00014794,2]
[337449468,1725673841404,-697.02,0.00014794,2]
[337449469,1725673841414,-697.02,0.00014794,2]
[337449470,1725673841424,-697.02,0.00014794,2]
[337449471,1725673841433,-697.02,0.00014794,2]
[337449472,1725673841443,-697.02,0.00014794,2]
[337449473,1725673841453,-697.02,0.00014794,2]
[337449474,1725673841463,-697.02,0.00014794,2]
[337449475,1725673841473,-697.02,0.00014794,2]
[337449476,1725673841484,-697.02,0.00014794,2]
[337449477,1725673841494,-697.02,0.00014794,2]
[337449478,1725673841504,-697.02,0.00014794,2]
[337449479,1725673841514,-697.19557336,0.00014794,2]
[337449480,1725673841523,-502.2191363,0.00014794,2]
[337449481,1725673841534,-500.0,0.00014794,2]
[337449482,1725673841543,-501.69526125,0.00014794,2]
[337449483,1725673841554,-506.72108105,0.00014794,2]
[337449484,1725673841564,-500.0,0.00014794,2]
[337449485,1725673841574,-151.0,0.00014794,2]
[337449486,1725673841584,-500.0,0.00014794,2]
[337449487,1725673841594,-500.0,0.00014794,2]
[337449488,1725673841604,-500.0,0.00014794,2]
[337449489,1725673841614,-151.0,0.00014794,2]
[337449490,1725673841624,-503.66058842,0.00014794,2]
[337449491,1725673841634,-500.0,0.00014794,2]
[337449492,1725673841644,-151.0,0.00014794,2]
[337449493,1725673841654,-500.0,0.00014794,2]
[337449494,1725673841664,-616.31045352,0.00014794,2]
[337449495,1725673841675,-500.0,0.00014794,2]
[337449496,1725673841685,-500.0,0.00014794,2]
[337449497,1725673841696,-500.0,0.00014794,2]
[337449498,1725673841706,-500.0,0.00014794,2]
[337449499,1725673841716,-500.0,0.00014794,2]
[337449500,1725673841726,-500.0,0.00014794,2]
[337449501,1725673841992,-500.0,0.00014794,2]
[337449502,1725673842004,-500.0,0.00014794,2]
[337449503,1725673842014,-509.00741715,0.00014794,2]
[337449504,1725673842024,-500.0,0.00014794,2]
[337449505,1725673842035,-166.427159,0.00014794,2]
[337449506,1725673842045,-500.0,0.00014794,2]
[337449507,1725673842056,-500.0,0.00014794,2]
[337449508,1725673842066,-500.0,0.00014794,2]
[337449509,1725673842076,-500.0,0.00014794,2]
[337449510,1725673842086,-500.0,0.00014794,2]
[337449511,1725673842096,-500.0,0.00014794,2]
[337449512,1725673842105,-500.0,0.00014794,2]
[337449513,1725673842115,-500.0,0.00014794,2]
[337449514,1725673842124,-506.98384996,0.00014794,2]
[337449515,1725673842134,-500.0,0.00014794,2]
[337449516,1725673842144,-500.0,0.00014794,2]
[337449517,1725673842154,-500.0,0.00014794,2]
[337449518,1725673842163,-500.0,0.00014794,2]
[337449519,1725673842173,-500.0,0.00014794,2]
[337449520,1725673842182,-500.0,0.00014794,2]
[337449521,1725673842192,-508.58793668,0.00014794,2]
[337449522,1725673842201,-500.0,0.00014794,2]
[337449523,1725673842211,-500.0,0.00014794,2]
[337449524,1725673842221,-500.0,0.00014794,2]
[337449525,1725673842231,-500.0,0.00014794,2]
[337449526,1725673842240,-500.0,0.00014794,2]
[337449527,1725673842250,-500.0,0.00014794,2]
[337449528,1725673842259,-500.0,0.00014794,2]
[337449529,1725673842268,-523.33367076,0.00014794,2]
[337449530,1725673842279,-151.0,0.00014794,2]
[337449531,1725673842289,-165.73828119,0.00014794,2]
[337449532,1725673842299,-151.0,0.00014794,2]
[337449533,1725673842308,-151.0,0.00014794,2]
[337449534,1725673842319,-151.0,0.00014794,2]
[337449535,1725673842330,-151.0,0.00014794,2]
[337449536,1725673842339,-500.0,0.00014794,2]
[337449537,1725673842349,-151.0,0.00014794,2]
[337449538,1725673842358,-500.0,0.00014794,2]
[337449539,1725673842368,-500.0,0.00014794,2]
[337449540,1725673842378,-503.09533548,0.00014794,2]
[337449541,1725673842387,-500.0,0.00014794,2]
[337449542,1725673842398,-500.0,0.00014794,2]
[337449543,1725673842407,-500.0,0.00014794,2]
[337449544,1725673842417,-500.0,0.00014794,2]
[337449545,1725673842426,-542.84368227,0.00014794,2]
[337449546,1725673842436,-500.0,0.00014794,2]
[337449547,1725673842445,-500.0,0.00014794,2]
[337449548,1725673842454,-500.0,0.00014794,2]
[337449549,1725673842463,-506.27150585,0.00014794,2]
[337449550,1725673842473,-500.0,0.00014794,2]
[337449551,1725673842482,-500.0,0.00014794,2]
[337449552,1725673842491,-514.4708622,0.00014794,2]
[337449553,1725673842501,-177.78,0.00014794,2]
[337449554,1725673842511,-500.0,0.00014794,2]
[337449555,1725673842520,-500.0,0.00014794,2]
[337449556,1725673842529,-517.79726212,0.00014794,2]
[337449557,1725673842538,-546.54,0.00014794,2]
[337449558,1725673842548,-546.54,0.00014794,2]
[337449559,1725673842557,-546.54,0.00014794,2]
[337449560,1725673842566,-546.54,0.00014794,2]
[337449561,1725673842576,-546.54,0.00014794,2]
[337449562,1725673842585,-500.0,0.00014794,2]
[337449564,1725673842594,-500.0,0.00014794,2]
[337449565,1725673842603,-546.54,0.00014794,2]
[337449566,1725673842612,-500.0,0.00014794,2]
[337449567,1725673842622,-546.54,0.00014794,2]
[337449568,1725673842631,-500.0,0.00014794,2]
[337449569,1725673842640,-546.54,0.00014794,2]
[337449570,1725673842650,-500.0,0.00014794,2]
[337449571,1725673842659,-546.54,0.00014794,2]
[337449572,1725673842668,-500.0,0.00014794,2]
[337449573,1725673842677,-546.54,0.00014794,2]
[337449574,1725673842687,-500.0,0.00014794,2]
[337449575,1725673842696,-500.0,0.00014794,2]
[337449576,1725673842705,-546.54,0.00014794,2]
[337449577,1725673842715,-500.0,0.00014794,2]
[337449578,1725673842724,-546.54,0.00014794,2]
[337449579,1725673842733,-500.83423755,0.00014794,2]
[337449580,1725673842743,-546.54,0.00014794,2]
[337449581,1725673842752,-500.0,0.00014794,2]
[337449582,1725673842761,-546.54,0.00014794,2]
[337449583,1725673842771,-500.0,0.00014794,2]
[337449584,1725673842781,-40.79556691,0.00014794,2]
[337449595,1725673843155,-337.47978585,0.00014794,2]
[337449596,1725673843165,-178.99746817,0.00014794,2]
[337449597,1725673843404,-2685.71488972,0.00014783,2]
[337449599,1725673843415,-7022.09689492,0.00014783,2]
[337449601,1725673843426,-367.54253183,0.00014794,2]
[337449603,1725673843435,-67.64626335,0.00014794,2]
[337449604,1725673843447,-329.67300818,0.00014794,2]
[337449605,1725673843458,-149.22072847,0.00014794,2]
[337449606,1725673843468,-500.0,0.00014794,2]
[337449607,1725673843478,-546.54,0.00014794,2]
[337449608,1725673843489,-500.0,0.00014794,2]
[337449609,1725673843498,-153.25690098,0.00014794,2]
[337449610,1725673843511,-393.28309902,0.00014794,2]
[337449611,1725673843520,-515.65320087,0.00014794,2]
[337449612,1725673843531,-546.54,0.00014794,2]
[337449613,1725673843540,-546.54,0.00014794,2]
[337449614,1725673843549,-546.54,0.00014794,2]
[337449615,1725673843558,-546.54,0.00014794,2]
[337449616,1725673843567,-546.54,0.00014794,2]
[337449617,1725673843576,-546.71837261,0.00014794,2]
[337449618,1725673843585,-500.0,0.00014794,2]
[337449619,1725673843594,-500.0,0.00014794,2]
[337449620,1725673843603,-500.0,0.00014794,2]
[337449621,1725673843613,-513.47109949,0.00014794,2]
[337449622,1725673843622,-500.0,0.00014794,2]
[337449623,1725673843631,-293.67221666,0.00014794,2]
[337449624,1725673843646,-235.89997755,0.00014794,2]
[337449625,1725673843655,-500.0,0.00014794,2]
[337449626,1725673843664,-500.0,0.00014794,2]
[337449627,1725673843673,-500.0,0.00014794,2]
[337449628,1725673843682,-515.9919364,0.00014794,2]
[337449629,1725673843691,-500.0,0.00014794,2]
[337449630,1725673843700,-216.15808605,0.00014794,2]
[337449631,1725673843935,-283.84191395,0.00014794,2]
[337449632,1725673843944,-513.74903253,0.00014794,2]
[337449633,1725673843954,-500.0,0.00014794,2]
[337449634,1725673843964,-500.0,0.00014794,2]
[337449635,1725673843975,-518.52533859,0.00014794,2]
[337449636,1725673843985,-414.28726211,0.00014794,2]
[337449637,1725673844000,-85.71273789,0.00014794,2]
[337449638,1725673844010,-500.0,0.00014794,2]
[337449639,1725673844019,-500.0,0.00014794,2]
[337449640,1725673844028,-500.0,0.00014794,2]
[337449641,1725673844037,-858.59,0.00014794,2]
[337449642,1725673844046,-500.0,0.00014794,2]
[337449643,1725673844055,-858.59,0.00014794,2]
[337449644,1725673844065,-500.0,0.00014794,2]
[337449645,1725673844074,-585.38488178,0.00014794,2]
[337449646,1725673844087,-273.20511822,0.00014794,2]
[337449647,1725673844096,-40.79488078,0.00014794,2]
[337449648,1725673844108,-459.20511922,0.00014794,2]
[337449649,1725673844117,-655.27236784,0.00014794,2]
[337449650,1725673844128,-203.31763216,0.00014794,2]
[337449651,1725673844137,-431.09737654,0.00014794,2]
[337449652,1725673844147,-858.59,0.00014794,2]
[337449653,1725673844155,-858.59,0.00014794,2]
[337449654,1725673844164,-388.64073446,0.00014794,2]
[337449655,1725673844176,-469.94926554,0.00014794,2]
[337449656,1725673844185,-345.05073446,0.00014794,2]
[337449657,1725673844197,-513.53926554,0.00014794,2]
[337449658,1725673844206,-680.65389936,0.00014794,2]
[337449659,1725673844476,-177.93610064,0.00014794,2]
[337449660,1725673844486,-75.50887834,0.00014794,2]
[337449661,1725673844497,-556.86577081,0.00014794,2]
[337449662,1725673844508,-226.21535085,0.00014794,2]
[337449663,1725673844517,-277.93664915,0.00014794,2]
[337449664,1725673844530,-580.65335085,0.00014794,2]
[337449665,1725673844540,-858.59,0.00014794,2]
[337449666,1725673844551,-858.59,0.00014794,2]
[337449667,1725673844560,-500.0,0.00014794,2]
[337449668,1725673844570,-500.0,0.00014794,2]
[337449669,1725673844580,-500.0,0.00014794,2]
[337449670,1725673844589,-858.59,0.00014794,2]
[337449671,1725673844601,-509.70038468,0.00014794,2]
[337449672,1725673844611,-858.59,0.00014794,2]
[337449673,1725673844620,-500.0,0.00014794,2]
[337449674,1725673844629,-858.59,0.00014794,2]
[337449675,1725673844638,-500.0,0.00014794,2]
[337449676,1725673844648,-858.59,0.00014794,2]
[337449677,1725673844658,-500.0,0.00014794,2]
[337449678,1725673844669,-858.59,0.00014794,2]
[337449679,1725673844679,-500.0,0.00014794,2]
[337449680,1725673844689,-858.59,0.00014794,2]
[337449681,1725673844698,-500.0,0.00014794,2]
[337449682,1725673844708,-858.59,0.00014794,2]
[337449683,1725673844718,-500.0,0.00014794,2]
[337449684,1725673844727,-858.59,0.00014794,2]
[337449685,1725673844737,-151.0,0.00014794,2]
[337449686,1725673844746,-500.0,0.00014794,2]
[337449687,1725673844756,-858.59,0.00014794,2]
[337449688,1725673844767,-500.0,0.00014794,2]
[337449689,1725673844776,-500.0,0.00014794,2]
[337449690,1725673844786,-858.59,0.00014794,2]
[337449691,1725673844796,-514.03000482,0.00014794,2]
[337449692,1725673844806,-500.0,0.00014794,2]
[337449693,1725673844815,-500.0,0.00014794,2]
[337449694,1725673844825,-156.544224,0.00014794,2]
[337449695,1725673844835,-500.0,0.00014794,2]
[337449696,1725673844844,-649.12965018,0.00014794,2]
[337449697,1725673844854,-500.0,0.00014794,2]
[337449698,1725673844863,-500.0,0.00014794,2]
[337449699,1725673844873,-526.45070852,0.00014794,2]
[337449700,1725673844882,-500.0,0.00014794,2]
[337449701,1725673844891,-500.0,0.00014794,2]
[337449702,1725673844900,-858.82821153,0.00014794,2]
[337449703,1725673844910,-500.0,0.00014794,2]
[337449704,1725673844919,-515.10244538,0.00014794,2]
[337449705,1725673844928,-500.0,0.00014794,2]
[337449706,1725673844938,-500.0,0.00014794,2]
[337449707,1725673844947,-500.0,0.00014794,2]
[337449708,1725673844957,-500.0,0.00014794,2]
[337449709,1725673844966,-533.73950929,0.00014794,2]
[337449710,1725673844976,-500.0,0.00014794,2]
[337449711,1725673844985,-513.77252141,0.00014794,2]
[337449712,1725673844995,-500.0,0.00014794,2]
[337449713,1725673845005,-500.0,0.00014794,2]
[337449714,1725673845014,-151.340495,0.00014794,2]
[337449715,1725673845023,-514.48210424,0.00014794,2]
[337449716,1725673845033,-500.0,0.00014794,2]
[337449717,1725673845044,-500.0,0.00014794,2]
[337449718,1725673845053,-500.0,0.00014794,2]
[337449719,1725673845062,-500.0,0.00014794,2]
[337449720,1725673845071,-515.04640072,0.00014794,2]
[337449721,1725673845081,-600.79440868,0.00014794,2]
[337449722,1725673845090,-500.0,0.00014794,2]
[337449723,1725673845099,-500.0,0.00014794,2]
[337449724,1725673845108,-500.0,0.00014794,2]
[337449725,1725673845118,-648.36474045,0.00014794,2]
[337449726,1725673845127,-333.14251137,0.00014794,2]
[337449727,1725673845136,-500.0,0.00014794,2]
[337449728,1725673845146,-500.0,0.00014794,2]
[337449729,1725673845155,-500.0,0.00014794,2]
[337449730,1725673845164,-500.0,0.00014794,2]
[337449731,1725673845174,-172.55547255,0.00014794,2]
[337449732,1725673845183,-501.61890456,0.00014794,2]
[337449733,1725673845192,-510.38870646,0.00014794,2]
[337449734,1725673845201,-500.0,0.00014794,2]
[337449735,1725673845210,-500.0,0.00014794,2]
[337449736,1725673845220,-155.55384109,0.00014794,2]
[337449737,1725673845229,-500.0,0.00014794,2]
[337449738,1725673845238,-574.35221547,0.00014794,2]
[337449739,1725673845247,-500.0,0.00014794,2]
[337449740,1725673845256,-304.30405216,0.00014794,2]
[337449741,1725673845288,-195.69594784,0.00014794,2]
[337449742,1725673845297,-322.31706723,0.00014794,2]
[337449743,1725673845306,-500.0,0.00014794,2]
[337449744,1725673845316,-532.44160101,0.00014794,2]
[337449745,1725673845328,-500.0,0.00014794,2]
[337449746,1725673845338,-500.0,0.00014794,2]
[337449747,1725673845347,-500.0,0.00014794,2]
[337449748,1725673845357,-501.5580746,0.00014794,2]
[337449749,1725673845366,-505.73610365,0.00014794,2]
[337449750,1725673845376,-500.0,0.00014794,2]
[337449751,1725673845386,-500.0,0.00014794,2]
[337449752,1725673845395,-500.0,0.00014794,2]
[337449753,1725673845404,-500.0,0.00014794,2]
[337449754,1725673845414,-176.87240031,0.00014794,2]
[337449755,1725673845423,-500.0,0.00014794,2]
[337449756,1725673845432,-309.09952893,0.00014794,2]
[337449757,1725673845448,-190.90047107,0.00014794,2]
[337449758,1725673845457,-505.46838103,0.00014794,2]
[337449759,1725673845466,-500.0,0.00014794,2]
[337449760,1725673845475,-500.0,0.00014794,2]
[337449761,1725673845484,-34.4771079,0.00014794,2]
[337449762,1725673845500,-465.5228921,0.00014794,2]
[337449763,1725673845509,-500.0,0.00014794,2]
[337449764,1725673845519,-402.07086308,0.00014794,2]
[337449765,1725673845531,-97.92913692,0.00014794,2]
[337449766,1725673845540,-500.0,0.00014794,2]
[337449767,1725673845549,-527.18230348,0.00014794,2]
[337449768,1725673845559,-500.0,0.00014794,2]
[337449769,1725673845568,-500.0,0.00014794,2]
[337449770,1725673845578,-500.0,0.00014794,2]
[337449771,1725673845587,-500.0,0.00014794,2]
[337449772,1725673845596,-500.0,0.00014794,2]